[Event "Early-Titled-Tuesday-Blitz-September-26-2023"]
[Site "Chess.com"]
[Date "2023.09.26"]
[Round "1"]
[White "Tssunami"]
[Black "Aradhya2000"]
[Result "0-1"]
[WhiteElo "2412"]
[BlackElo "2706"]
[TimeControl "180+1"]
[EndTime "8:06:25 PDT"]
[Termination "Aradhya2000 won by resignation"]

1. Nf3 {[%clk 0:02:59.5]} 1... Nf6 {[%clk 0:02:59.7]} 2. b3 {[%clk 0:02:59.6]}
2... g6 {[%clk 0:02:59.3]} 3. Bb2 {[%clk 0:03:00.1]} 3... Bg7 {[%clk 0:03:00]}
4. g3 {[%clk 0:03:00.6]} 4... b6 {[%clk 0:02:59.8]} 5. Bg2 {[%clk 0:03:01.1]}
5... Bb7 {[%clk 0:03:00.5]} 6. O-O {[%clk 0:03:01.7]} 6... O-O {[%clk 0:03:01]}
7. c4 {[%clk 0:03:02.2]} 7... c5 {[%clk 0:03:00.2]} 8. d3 {[%clk 0:03:01.2]}
8... d6 {[%clk 0:02:56.9]} 9. Nbd2 {[%clk 0:03:01.4]} 9... Nbd7 {[%clk 0:02:57]}
10. a3 {[%clk 0:02:59.9]} 10... Rc8 {[%clk 0:02:56]} 11. Ra2 {[%clk 0:02:59.3]}
11... Rc7 {[%clk 0:02:41.1]} 12. b4 {[%clk 0:02:58.1]} 12... Qa8 {[%clk
0:02:41.3]} 13. Qa1 {[%clk 0:02:57]} 13... a6 {[%clk 0:02:35.7]} 14. Rb1 {[%clk
0:02:56]} 14... Bc6 {[%clk 0:02:35.3]} 15. Bc3 {[%clk 0:02:55]} 15... Rb8 {[%clk
0:02:27.1]} 16. Qb2 {[%clk 0:02:51.2]} 16... b5 {[%clk 0:02:26.8]} 17. cxb5
{[%clk 0:02:48]} 17... axb5 {[%clk 0:02:22.1]} 18. Ne1 {[%clk 0:02:38.7]} 18...
Nb6 {[%clk 0:02:17]} 19. Bxc6 {[%clk 0:02:37.1]} 19... Qxc6 {[%clk 0:02:17.9]}
20. Qb3 {[%clk 0:02:16.9]} 20... Na4 {[%clk 0:02:00.9]} 21. Ba1 {[%clk
0:02:15.7]} 21... c4 {[%clk 0:02:00.6]} 22. dxc4 {[%clk 0:02:06.4]} 22... bxc4
{[%clk 0:02:00.8]} 23. Qc2 {[%clk 0:02:05.7]} 23... c3 {[%clk 0:02:00.3]} 24.
Nb3 {[%clk 0:02:03.4]} 24... Nd5 {[%clk 0:01:46.7]} 25. Na5 {[%clk 0:02:01.5]}
25... Qb5 {[%clk 0:01:44.3]} 26. e4 {[%clk 0:01:39.5]} 26... Ndb6 {[%clk
0:01:42.9]} 27. Nf3 {[%clk 0:01:34.1]} 27... Nc4 {[%clk 0:01:37.1]} 28. Nxc4
{[%clk 0:01:31.1]} 28... Qxc4 {[%clk 0:01:37.1]} 29. Rc1 {[%clk 0:01:05.8]}
29... Nb2 {[%clk 0:01:34.2]} 30. Qb1 {[%clk 0:00:52.4]} 30... c2 {[%clk
0:01:34.5]} 31. Qxb2 {[%clk 0:00:44.8]} 31... Bxb2 {[%clk 0:01:33.6]} 32. Rxb2
{[%clk 0:00:45.4]} 32... Qxe4 {[%clk 0:01:33.9]} 33. Ne1 {[%clk 0:00:44.1]}
33... Rbc8 {[%clk 0:01:33.1]} 34. b5 {[%clk 0:00:42.9]} 34... Qe2 {[%clk
0:01:33]} 35. b6 {[%clk 0:00:29]} 35... Rb7 {[%clk 0:01:32.8]} 36. a4 {[%clk
0:00:24.1]} 36... Qd2 {[%clk 0:01:30.6]} 37. Rbb1 {[%clk 0:00:08.1]} 37... Rxb6
{[%clk 0:01:25.6]} 38. Rxc2 {[%clk 0:00:06]} 38... Rxc2 {[%clk 0:01:23.4]} 39.
Rxb6 {[%clk 0:00:06.3]} 39... Qxe1+ {[%clk 0:01:23.4]} 40. Kg2 {[%clk 0:00:04]}
40... Qxa1 {[%clk 0:01:24.1]} 0-1

[Event "Early-Titled-Tuesday-Blitz-September-26-2023"]
[Site "Chess.com"]
[Date "2023.09.26"]
[Round "1"]
[White "SargissyanSargis"]
[Black "sofaceindisguise"]
[Result "1-0"]
[WhiteElo "2414"]
[BlackElo "2682"]
[TimeControl "180+1"]
[EndTime "8:06:25 PDT"]
[Termination "SargissyanSargis won by resignation"]

1. e4 {[%clk 0:03:00.9]} 1... c5 {[%clk 0:02:50.9]} 2. Nf3 {[%clk 0:02:59.9]}
2... e6 {[%clk 0:02:50.9]} 3. d4 {[%clk 0:02:59.6]} 3... cxd4 {[%clk 0:02:51.8]}
4. Nxd4 {[%clk 0:03:00.1]} 4... Nf6 {[%clk 0:02:52.3]} 5. Nc3 {[%clk 0:02:59.7]}
5... Nc6 {[%clk 0:02:51.4]} 6. Ndb5 {[%clk 0:02:59.8]} 6... Bc5 {[%clk
0:02:51.1]} 7. Bf4 {[%clk 0:02:59.8]} 7... O-O {[%clk 0:02:49.8]} 8. Bc7 {[%clk
0:02:59.2]} 8... Qe7 {[%clk 0:02:48.6]} 9. Bd6 {[%clk 0:02:59.5]} 9... Bxd6
{[%clk 0:02:48]} 10. Qxd6 {[%clk 0:03:00]} 10... Qd8 {[%clk 0:02:48]} 11. O-O-O
{[%clk 0:02:52.6]} 11... a6 {[%clk 0:02:48.4]} 12. Nd4 {[%clk 0:02:48.2]} 12...
Ne7 {[%clk 0:02:45.5]} 13. Be2 {[%clk 0:02:37]} 13... b5 {[%clk 0:02:45.7]} 14.
e5 {[%clk 0:02:32.3]} 14... Nfd5 {[%clk 0:02:42.9]} 15. Nxd5 {[%clk 0:02:31.8]}
15... Nxd5 {[%clk 0:02:42.4]} 16. Bf3 {[%clk 0:02:23.2]} 16... Bb7 {[%clk
0:02:42.7]} 17. Kb1 {[%clk 0:02:19.6]} 17... f6 {[%clk 0:02:23.8]} 18. Nf5
{[%clk 0:02:11.4]} 18... fxe5 {[%clk 0:02:17.6]} 19. Bxd5 {[%clk 0:02:08.5]}
19... exd5 {[%clk 0:02:12.5]} 20. Ne7+ {[%clk 0:02:09]} 20... Kh8 {[%clk
0:02:13]} 21. Nxd5 {[%clk 0:02:05.8]} 21... Rxf2 {[%clk 0:02:10.1]} 22. Qxe5
{[%clk 0:02:02.3]} 22... Qe8 {[%clk 0:02:02.6]} 23. Qd4 {[%clk 0:01:40.1]} 23...
Qe2 {[%clk 0:01:58.6]} 24. Ne3 {[%clk 0:01:40.1]} 24... Bc6 {[%clk 0:01:43.2]}
25. Rhe1 {[%clk 0:01:38.4]} 25... Qh5 {[%clk 0:01:43.4]} 26. g4 {[%clk
0:01:15.8]} 26... Qxh2 {[%clk 0:01:41.6]} 27. Nf5 {[%clk 0:01:15]} 27... Rg8
{[%clk 0:01:19.6]} 28. Re8 {[%clk 0:01:13.8]} 28... Rxf5 {[%clk 0:01:19]} 29.
Rxg8+ {[%clk 0:01:13.8]} 29... Kxg8 {[%clk 0:01:19.6]} 30. gxf5 {[%clk
0:01:14.2]} 30... Qh5 {[%clk 0:01:15.6]} 31. Rg1 {[%clk 0:01:10.2]} 31... Qf7
{[%clk 0:01:14.1]} 32. Qe5 {[%clk 0:01:05.5]} 32... h6 {[%clk 0:01:07.6]} 33. f6
{[%clk 0:01:01.7]} 33... g5 {[%clk 0:01:07.6]} 34. Re1 {[%clk 0:00:57.4]} 34...
Bd5 {[%clk 0:01:04.4]} 35. Qb8+ {[%clk 0:00:55.1]} 35... Qf8 {[%clk 0:00:53.2]}
36. Re8 {[%clk 0:00:54.4]} 1-0

[Event "Early-Titled-Tuesday-Blitz-September-26-2023"]
[Site "Chess.com"]
[Date "2023.09.26"]
[Round "1"]
[White "GP9isback23"]
[Black "InitiatingASC"]
[Result "1-0"]
[WhiteElo "2647"]
[BlackElo "2347"]
[TimeControl "180+1"]
[EndTime "8:06:25 PDT"]
[Termination "GP9isback23 won on time"]

1. Nf3 {[%clk 0:02:59.1]} 1... Nf6 {[%clk 0:02:58.4]} 2. d4 {[%clk 0:02:58]}
2... e6 {[%clk 0:02:55.9]} 3. Bg5 {[%clk 0:02:57.4]} 3... d5 {[%clk 0:02:54.8]}
4. e3 {[%clk 0:02:57]} 4... c5 {[%clk 0:02:55]} 5. c3 {[%clk 0:02:57.4]} 5...
Nc6 {[%clk 0:02:52.7]} 6. Bxf6 {[%clk 0:02:57.6]} 6... Qxf6 {[%clk 0:02:52.3]}
7. Nbd2 {[%clk 0:02:58.3]} 7... cxd4 {[%clk 0:02:51.8]} 8. exd4 {[%clk
0:02:58.3]} 8... Bd6 {[%clk 0:02:48.7]} 9. Be2 {[%clk 0:02:57.4]} 9... O-O
{[%clk 0:02:48.2]} 10. O-O {[%clk 0:02:57.3]} 10... e5 {[%clk 0:02:43.8]} 11.
dxe5 {[%clk 0:02:57]} 11... Nxe5 {[%clk 0:02:44]} 12. Nxe5 {[%clk 0:02:57.3]}
12... Qxe5 {[%clk 0:02:42.5]} 13. Nf3 {[%clk 0:02:57.7]} 13... Qh5 {[%clk
0:02:40.7]} 14. g3 {[%clk 0:02:56.3]} 14... Bh3 {[%clk 0:02:37.3]} 15. Re1
{[%clk 0:02:56.2]} 15... Rfe8 {[%clk 0:02:27.5]} 16. Nd4 {[%clk 0:02:54.5]}
16... Rxe2 {[%clk 0:02:20.6]} 17. Qxe2 {[%clk 0:02:49.5]} 17... Bg4 {[%clk
0:02:19.8]} 18. f3 {[%clk 0:02:44.1]} 18... Bd7 {[%clk 0:02:19.9]} 19. Rad1
{[%clk 0:02:42.4]} 19... Qg5 {[%clk 0:01:53.8]} 20. Qf2 {[%clk 0:02:27.1]} 20...
h5 {[%clk 0:01:52]} 21. f4 {[%clk 0:02:10.4]} 21... Qg4 {[%clk 0:01:28.3]} 22.
Qf3 {[%clk 0:02:08]} 22... Qxf3 {[%clk 0:01:16.2]} 23. Nxf3 {[%clk 0:02:06.6]}
23... Bc5+ {[%clk 0:01:13.6]} 24. Kg2 {[%clk 0:02:05.5]} 24... Bc6 {[%clk
0:01:02.8]} 25. Nd4 {[%clk 0:02:04.2]} 25... Bd7 {[%clk 0:01:02.2]} 26. Rd2
{[%clk 0:02:02.5]} 26... Rd8 {[%clk 0:00:51.7]} 27. Re5 {[%clk 0:02:00.2]} 27...
g6 {[%clk 0:00:50]} 28. h4 {[%clk 0:01:44.9]} 28... Bg4 {[%clk 0:00:12.9]} 29.
Nb3 {[%clk 0:01:35.4]} 29... Bb6 {[%clk 0:00:09]} 30. Rexd5 {[%clk 0:01:32.5]}
30... Re8 {[%clk 0:00:09.2]} 31. Re5 {[%clk 0:01:32.3]} 31... Rxe5 {[%clk
0:00:06.3]} 32. fxe5 {[%clk 0:01:32.2]} 32... Kf8 {[%clk 0:00:07.2]} 33. Nd4
{[%clk 0:01:24.9]} 33... Ke7 {[%clk 0:00:06.8]} 34. Kf2 {[%clk 0:01:23.9]} 34...
Bc7 {[%clk 0:00:06.7]} 35. Nf3 {[%clk 0:01:17.8]} 35... Bb6+ {[%clk 0:00:03.4]}
36. Kg2 {[%clk 0:01:18.3]} 36... Be3 {[%clk 0:00:02.2]} 37. Re2 {[%clk
0:01:16.7]} 37... Bb6 {[%clk 0:00:02.5]} 38. c4 {[%clk 0:01:11.3]} 38... Ke6
{[%clk 0:00:02]} 39. b4 {[%clk 0:01:11.1]} 39... Bc7 {[%clk 0:00:01.3]} 40. Ng5+
{[%clk 0:01:08.3]} 1-0

[Event "Early-Titled-Tuesday-Blitz-September-26-2023"]
[Site "Chess.com"]
[Date "2023.09.26"]
[Round "1"]
[White "Aswathchess"]
[Black "EvgenyBurmakin"]
[Result "1-0"]
[WhiteElo "2613"]
[BlackElo "2294"]
[TimeControl "180+1"]
[EndTime "8:06:26 PDT"]
[Termination "Aswathchess won by resignation"]

1. e4 {[%clk 0:02:57.2]} 1... c5 {[%clk 0:02:59.2]} 2. Nc3 {[%clk 0:02:57.4]}
2... Nc6 {[%clk 0:02:58.3]} 3. Bb5 {[%clk 0:02:58]} 3... Nd4 {[%clk 0:02:57.6]}
4. Nf3 {[%clk 0:02:58.3]} 4... Nxb5 {[%clk 0:02:56.6]} 5. Nxb5 {[%clk
0:02:59.2]} 5... a6 {[%clk 0:02:52.7]} 6. Nc3 {[%clk 0:02:59.7]} 6... e6 {[%clk
0:02:53]} 7. O-O {[%clk 0:03:00.3]} 7... d6 {[%clk 0:02:49.5]} 8. d4 {[%clk
0:03:00.6]} 8... cxd4 {[%clk 0:02:48.4]} 9. Qxd4 {[%clk 0:03:01.5]} 9... Nf6
{[%clk 0:02:48.6]} 10. Bg5 {[%clk 0:03:01.8]} 10... Be7 {[%clk 0:02:48.5]} 11.
Rfd1 {[%clk 0:03:01.6]} 11... O-O {[%clk 0:02:38.5]} 12. Bxf6 {[%clk 0:03:01.4]}
12... Bxf6 {[%clk 0:02:38.1]} 13. Qxd6 {[%clk 0:03:01.9]} 13... Qxd6 {[%clk
0:02:13.3]} 14. Rxd6 {[%clk 0:03:02.8]} 14... Bxc3 {[%clk 0:02:09.3]} 15. bxc3
{[%clk 0:03:03.7]} 15... b5 {[%clk 0:02:08.3]} 16. Rad1 {[%clk 0:02:50.8]} 16...
Bb7 {[%clk 0:02:08.4]} 17. R1d4 {[%clk 0:02:49.7]} 17... Rac8 {[%clk 0:02:04.4]}
18. Rb6 {[%clk 0:02:45]} 18... Ba8 {[%clk 0:01:54.8]} 19. Rxa6 {[%clk
0:02:45.1]} 19... Rxc3 {[%clk 0:01:54.1]} 20. Ne1 {[%clk 0:02:45.5]} 20... e5
{[%clk 0:01:48.7]} 21. Rb4 {[%clk 0:02:45.1]} 21... Rd8 {[%clk 0:01:28.5]} 22.
f3 {[%clk 0:02:44.8]} 22... Bc6 {[%clk 0:01:13.8]} 23. Rb3 {[%clk 0:02:42.6]}
23... Rc4 {[%clk 0:01:11.9]} 24. c3 {[%clk 0:02:37.7]} 24... g6 {[%clk
0:01:11.1]} 25. Kf2 {[%clk 0:02:27.1]} 25... Rd1 {[%clk 0:01:03.4]} 26. Ke2
{[%clk 0:02:27.3]} 26... Ra1 {[%clk 0:00:57.3]} 27. Nc2 {[%clk 0:02:23.2]} 27...
Rc1 {[%clk 0:00:49.5]} 28. Kd2 {[%clk 0:02:21.2]} 28... Rg1 {[%clk 0:00:44.5]}
29. Ne3 {[%clk 0:02:21]} 29... Rc5 {[%clk 0:00:34.7]} 30. Ra5 {[%clk 0:02:20.8]}
30... Kg7 {[%clk 0:00:24.6]} 31. c4 {[%clk 0:02:05]} 31... bxc4 {[%clk
0:00:21.1]} 32. Rxc5 {[%clk 0:02:04.2]} 32... cxb3 {[%clk 0:00:20.7]} 33. axb3
{[%clk 0:02:04.7]} 33... Bd7 {[%clk 0:00:15.1]} 34. Rxe5 {[%clk 0:02:04.5]}
34... Be6 {[%clk 0:00:14.6]} 35. b4 {[%clk 0:02:03.7]} 35... Rb1 {[%clk
0:00:14.4]} 36. b5 {[%clk 0:02:04.1]} 36... Rb2+ {[%clk 0:00:13.9]} 37. Kc3
{[%clk 0:02:03]} 37... Re2 {[%clk 0:00:11.4]} 38. Kd3 {[%clk 0:02:02.9]} 38...
Rb2 {[%clk 0:00:11.2]} 39. Rc5 {[%clk 0:02:00.3]} 39... f5 {[%clk 0:00:06.5]}
40. exf5 {[%clk 0:01:58.6]} 40... gxf5 {[%clk 0:00:07.4]} 41. f4 {[%clk
0:01:56.4]} 41... Kf6 {[%clk 0:00:06.4]} 42. Nc2 {[%clk 0:01:53.5]} 42... Rb3+
{[%clk 0:00:05.6]} 43. Kd2 {[%clk 0:01:52.1]} 43... Rb2 {[%clk 0:00:05.4]} 44.
Kc1 {[%clk 0:01:51]} 44... Rb3 {[%clk 0:00:05.6]} 45. Rc6 {[%clk 0:01:50.9]}
45... Rxb5 {[%clk 0:00:04.6]} 46. Rxe6+ {[%clk 0:01:50.6]} 46... Kxe6 {[%clk
0:00:04.8]} 47. Nd4+ {[%clk 0:01:51.2]} 47... Kd5 {[%clk 0:00:05.5]} 48. Nxb5
{[%clk 0:01:51.9]} 48... Ke4 {[%clk 0:00:06.2]} 49. g3 {[%clk 0:01:51.5]} 49...
Kf3 {[%clk 0:00:06.8]} 50. Nd6 {[%clk 0:01:52.1]} 50... Kg2 {[%clk 0:00:06.9]}
51. Nxf5 {[%clk 0:01:52.5]} 51... Kxh2 {[%clk 0:00:07.6]} 52. Kd2 {[%clk
0:01:53]} 52... Kh3 {[%clk 0:00:07.4]} 53. Ke3 {[%clk 0:01:53.6]} 53... Kg4
{[%clk 0:00:08.1]} 54. Ke4 {[%clk 0:01:53.8]} 54... h5 {[%clk 0:00:08.8]} 55.
Ng7 {[%clk 0:01:54.1]} 55... Kxg3 {[%clk 0:00:07.7]} 56. Nxh5+ {[%clk
0:01:53.9]} 56... Kg4 {[%clk 0:00:08.6]} 57. Ng7 {[%clk 0:01:53.8]} 1-0

[Event "Early-Titled-Tuesday-Blitz-September-26-2023"]
[Site "Chess.com"]
[Date "2023.09.26"]
[Round "1"]
[White "HATilay"]
[Black "Elaisaz"]
[Result "1-0"]
[WhiteElo "2564"]
[BlackElo "2161"]
[TimeControl "180+1"]
[EndTime "8:06:26 PDT"]
[Termination "HATilay won by resignation"]

1. d4 {[%clk 0:02:59.5]} 1... d5 {[%clk 0:02:47.2]} 2. c4 {[%clk 0:02:58.7]}
2... c6 {[%clk 0:02:44]} 3. Nf3 {[%clk 0:02:58.1]} 3... g6 {[%clk 0:02:41]} 4.
Nc3 {[%clk 0:02:56.9]} 4... Bg7 {[%clk 0:02:41.4]} 5. e3 {[%clk 0:02:56.2]} 5...
Nf6 {[%clk 0:02:41]} 6. cxd5 {[%clk 0:02:56.2]} 6... Nxd5 {[%clk 0:02:38]} 7.
Bc4 {[%clk 0:02:55.9]} 7... O-O {[%clk 0:02:35.2]} 8. O-O {[%clk 0:02:56.2]}
8... Nxc3 {[%clk 0:02:21.6]} 9. bxc3 {[%clk 0:02:56.2]} 9... c5 {[%clk
0:02:22.2]} 10. a4 {[%clk 0:02:56.2]} 10... Nc6 {[%clk 0:02:19.5]} 11. Ba3
{[%clk 0:02:54.8]} 11... b6 {[%clk 0:02:10.7]} 12. Be2 {[%clk 0:02:54.6]} 12...
Qc7 {[%clk 0:01:22.2]} 13. h3 {[%clk 0:02:36.6]} 13... Na5 {[%clk 0:01:20]} 14.
Rc1 {[%clk 0:02:26.7]} 14... Rd8 {[%clk 0:01:00.9]} 15. c4 {[%clk 0:02:19.4]}
15... cxd4 {[%clk 0:00:58.1]} 16. exd4 {[%clk 0:02:19.3]} 16... Bf5 {[%clk
0:00:52]} 17. Re1 {[%clk 0:02:15.2]} 17... Bh6 {[%clk 0:00:40.9]} 18. Rc3 {[%clk
0:01:39.1]} 18... Rac8 {[%clk 0:00:40.7]} 19. Bf1 {[%clk 0:01:36.4]} 19... Be6
{[%clk 0:00:35.9]} 20. Rxe6 {[%clk 0:01:35.4]} 20... fxe6 {[%clk 0:00:35.6]} 21.
Qe2 {[%clk 0:01:17.1]} 21... Qd7 {[%clk 0:00:17.5]} 22. Ne5 {[%clk 0:00:39.7]}
22... Qxd4 {[%clk 0:00:17.1]} 23. Ng4 {[%clk 0:00:40.3]} 23... Bg7 {[%clk
0:00:09.9]} 24. Qxe6+ {[%clk 0:00:40.5]} 24... Kh8 {[%clk 0:00:09]} 25. Rd3
{[%clk 0:00:41.1]} 25... Qxc4 {[%clk 0:00:07.4]} 26. Rxd8+ {[%clk 0:00:40.9]}
26... Rxd8 {[%clk 0:00:08]} 27. Bxc4 {[%clk 0:00:41.1]} 1-0

[Event "Early-Titled-Tuesday-Blitz-September-26-2023"]
[Site "Chess.com"]
[Date "2023.09.26"]
[Round "1"]
[White "GaalZsoka"]
[Black "Iball95"]
[Result "0-1"]
[WhiteElo "2466"]
[BlackElo "2779"]
[TimeControl "180+1"]
[EndTime "8:06:28 PDT"]
[Termination "Iball95 won by resignation"]

1. Nf3 {[%clk 0:03:00.9]} 1... d5 {[%clk 0:02:54]} 2. g3 {[%clk 0:03:00.9]} 2...
Nf6 {[%clk 0:02:53.8]} 3. Bg2 {[%clk 0:03:00.9]} 3... c5 {[%clk 0:02:54.7]} 4.
O-O {[%clk 0:03:00.7]} 4... Nc6 {[%clk 0:02:55.2]} 5. b3 {[%clk 0:02:55.4]} 5...
e5 {[%clk 0:02:52.1]} 6. Bb2 {[%clk 0:02:55.5]} 6... e4 {[%clk 0:02:51.8]} 7.
Ne1 {[%clk 0:02:54.8]} 7... Be7 {[%clk 0:02:51.5]} 8. d3 {[%clk 0:02:51.9]} 8...
O-O {[%clk 0:02:50.6]} 9. c4 {[%clk 0:02:51.5]} 9... exd3 {[%clk 0:02:43.4]} 10.
Nxd3 {[%clk 0:02:45.2]} 10... d4 {[%clk 0:02:38.1]} 11. Nd2 {[%clk 0:02:38.3]}
11... Bf5 {[%clk 0:02:38]} 12. Nf3 {[%clk 0:02:31.9]} 12... Rc8 {[%clk
0:02:36.4]} 13. Nfe5 {[%clk 0:02:31.5]} 13... Nxe5 {[%clk 0:02:35.2]} 14. Nxe5
{[%clk 0:02:32.4]} 14... Qc7 {[%clk 0:02:33.4]} 15. Nd3 {[%clk 0:02:32.4]} 15...
Rfe8 {[%clk 0:02:33.4]} 16. Nf4 {[%clk 0:02:31.6]} 16... Bd6 {[%clk 0:02:30.9]}
17. Bc1 {[%clk 0:02:25.2]} 17... Be4 {[%clk 0:02:26.4]} 18. Bxe4 {[%clk
0:02:15.4]} 18... Rxe4 {[%clk 0:02:26.7]} 19. Nd5 {[%clk 0:01:32.4]} 19... Nxd5
{[%clk 0:02:24.4]} 20. cxd5 {[%clk 0:01:33.3]} 20... Qe7 {[%clk 0:02:19.8]} 21.
e3 {[%clk 0:01:24.3]} 21... dxe3 {[%clk 0:02:15]} 22. Bxe3 {[%clk 0:01:24.3]}
22... Re8 {[%clk 0:02:14.3]} 23. Qd3 {[%clk 0:01:20.8]} 23... h5 {[%clk
0:02:13.1]} 24. Rac1 {[%clk 0:01:16.2]} 24... h4 {[%clk 0:02:12.2]} 25. Bd2
{[%clk 0:01:04.5]} 25... Qe5 {[%clk 0:01:59.9]} 26. Rfe1 {[%clk 0:01:01.4]}
26... h3 {[%clk 0:01:53.3]} 27. Rxe4 {[%clk 0:01:00.6]} 27... Qxe4 {[%clk
0:01:53.8]} 28. Qxe4 {[%clk 0:00:57.8]} 28... Rxe4 {[%clk 0:01:54.5]} 29. Be3
{[%clk 0:00:57.2]} 29... b6 {[%clk 0:01:53.8]} 30. Kf1 {[%clk 0:00:53.5]} 30...
f5 {[%clk 0:01:53.2]} 31. Ke2 {[%clk 0:00:53.3]} 31... g5 {[%clk 0:01:48.7]} 32.
Kd3 {[%clk 0:00:45.6]} 32... g4 {[%clk 0:01:48.4]} 33. Rc4 {[%clk 0:00:37.9]}
33... Re5 {[%clk 0:01:47.5]} 34. Rc1 {[%clk 0:00:27.1]} 34... b5 {[%clk
0:01:41]} 35. Ke2 {[%clk 0:00:12.2]} 35... Rxd5 {[%clk 0:01:39.3]} 36. Rd1
{[%clk 0:00:12.2]} 36... Rxd1 {[%clk 0:01:38.6]} 37. Kxd1 {[%clk 0:00:13.1]}
37... Kf7 {[%clk 0:01:37.7]} 38. Kc2 {[%clk 0:00:08.3]} 38... Ke6 {[%clk
0:01:36.1]} 39. a3 {[%clk 0:00:04.7]} 39... Kd5 {[%clk 0:01:35.2]} 40. b4 {[%clk
0:00:04.9]} 40... cxb4 {[%clk 0:01:32.9]} 41. axb4 {[%clk 0:00:05.1]} 41... Bxb4
{[%clk 0:01:33.6]} 42. Bxa7 {[%clk 0:00:05]} 42... Bc5 {[%clk 0:01:33.6]} 43.
Bxc5 {[%clk 0:00:03.2]} 43... Kxc5 {[%clk 0:01:34.3]} 44. Kc3 {[%clk 0:00:03.9]}
44... b4+ {[%clk 0:01:34]} 45. Kb3 {[%clk 0:00:04.2]} 45... Kb5 {[%clk 0:01:34]}
46. Kb2 {[%clk 0:00:03.1]} 46... Kc4 {[%clk 0:01:30.9]} 0-1

[Event "Early-Titled-Tuesday-Blitz-September-26-2023"]
[Site "Chess.com"]
[Date "2023.09.26"]
[Round "1"]
[White "DonkyDonkyDonkey"]
[Black "GameOverBro"]
[Result "1-0"]
[WhiteElo "2723"]
[BlackElo "2422"]
[TimeControl "180+1"]
[EndTime "8:06:31 PDT"]
[Termination "DonkyDonkyDonkey won by resignation"]

1. e4 {[%clk 0:03:00.9]} 1... d6 {[%clk 0:02:59.8]} 2. d4 {[%clk 0:03:01]} 2...
Nf6 {[%clk 0:03:00.2]} 3. Nc3 {[%clk 0:03:01.3]} 3... e5 {[%clk 0:03:00.6]} 4.
Nf3 {[%clk 0:03:01.6]} 4... Nbd7 {[%clk 0:03:00.2]} 5. Bc4 {[%clk 0:02:58]} 5...
Be7 {[%clk 0:03:00]} 6. O-O {[%clk 0:02:57.1]} 6... c6 {[%clk 0:03:00.2]} 7. a4
{[%clk 0:02:57]} 7... h6 {[%clk 0:02:59.5]} 8. Ba2 {[%clk 0:02:56.5]} 8... Qc7
{[%clk 0:02:57.1]} 9. Re1 {[%clk 0:02:55.6]} 9... Nf8 {[%clk 0:02:57.4]} 10. h3
{[%clk 0:02:54.8]} 10... Ng6 {[%clk 0:02:57.9]} 11. Be3 {[%clk 0:02:53.9]} 11...
O-O {[%clk 0:02:57.8]} 12. Qd2 {[%clk 0:02:51.9]} 12... Kh7 {[%clk 0:02:58.3]}
13. Rad1 {[%clk 0:02:49]} 13... a6 {[%clk 0:02:58.3]} 14. d5 {[%clk 0:02:46.7]}
14... c5 {[%clk 0:02:49.8]} 15. Qe2 {[%clk 0:02:45.8]} 15... Bd7 {[%clk
0:02:27.4]} 16. Bb3 {[%clk 0:02:41.9]} 16... Rab8 {[%clk 0:02:17.5]} 17. Bc4
{[%clk 0:02:35.1]} 17... b5 {[%clk 0:02:13]} 18. axb5 {[%clk 0:02:34]} 18...
axb5 {[%clk 0:02:13.9]} 19. Bxb5 {[%clk 0:02:33.7]} 19... Nxe4 {[%clk
0:02:07.6]} 20. Bxd7 {[%clk 0:02:08.4]} 20... Nxc3 {[%clk 0:02:07.2]} 21. bxc3
{[%clk 0:02:09.3]} 21... Qxd7 {[%clk 0:02:07.4]} 22. Ra1 {[%clk 0:02:06.4]}
22... f5 {[%clk 0:02:04.7]} 23. Qa6 {[%clk 0:01:59.9]} 23... e4 {[%clk
0:02:02.3]} 24. Nh2 {[%clk 0:01:56.9]} 24... Bf6 {[%clk 0:02:00.6]} 25. Ra3
{[%clk 0:01:55.1]} 25... Ra8 {[%clk 0:01:41.9]} 26. Qxa8 {[%clk 0:01:46.1]}
26... Rxa8 {[%clk 0:01:42.8]} 27. Rxa8 {[%clk 0:01:46.5]} 27... Qb7 {[%clk
0:01:43.1]} 28. Ra3 {[%clk 0:01:20.8]} 28... Qxd5 {[%clk 0:01:41.7]} 29. Nf1
{[%clk 0:01:16.7]} 29... f4 {[%clk 0:01:41.5]} 30. Bc1 {[%clk 0:01:16]} 30...
Ne5 {[%clk 0:01:25.8]} 31. Nd2 {[%clk 0:01:16]} 31... e3 {[%clk 0:01:07.4]} 32.
fxe3 {[%clk 0:01:16.9]} 32... Bh4 {[%clk 0:00:53.1]} 33. e4 {[%clk 0:01:16.3]}
33... Qb7 {[%clk 0:00:45.2]} 34. Rf1 {[%clk 0:01:14.7]} 34... Bg3 {[%clk
0:00:42.2]} 35. c4 {[%clk 0:01:13.7]} 35... Qb4 {[%clk 0:00:37.9]} 36. Rb3
{[%clk 0:01:12.3]} 36... Qa4 {[%clk 0:00:37.5]} 37. Bb2 {[%clk 0:01:07.7]} 37...
Qa5 {[%clk 0:00:30.6]} 38. Bc3 {[%clk 0:01:04.7]} 38... Qa2 {[%clk 0:00:29.8]}
39. Bb2 {[%clk 0:01:00.2]} 39... h5 {[%clk 0:00:27.9]} 40. Ra1 {[%clk
0:00:58.5]} 1-0

[Event "Early-Titled-Tuesday-Blitz-September-26-2023"]
[Site "Chess.com"]
[Date "2023.09.26"]
[Round "1"]
[White "FoxOnTheRun97"]
[Black "campochess"]
[Result "1/2-1/2"]
[WhiteElo "2566"]
[BlackElo "2211"]
[TimeControl "180+1"]
[EndTime "8:06:36 PDT"]
[Termination "Game drawn by repetition"]

1. d4 {[%clk 0:02:58.6]} 1... Nf6 {[%clk 0:02:58.8]} 2. Bg5 {[%clk 0:02:58.4]}
2... e6 {[%clk 0:02:57.4]} 3. Nd2 {[%clk 0:02:54.9]} 3... c5 {[%clk 0:02:56.3]}
4. e3 {[%clk 0:02:53.7]} 4... cxd4 {[%clk 0:02:55.6]} 5. exd4 {[%clk 0:02:54.6]}
5... Nc6 {[%clk 0:02:52.7]} 6. c3 {[%clk 0:02:54.4]} 6... Be7 {[%clk 0:02:50.4]}
7. Bd3 {[%clk 0:02:53.6]} 7... d5 {[%clk 0:02:48.4]} 8. Ngf3 {[%clk 0:02:52.6]}
8... O-O {[%clk 0:02:41.6]} 9. O-O {[%clk 0:02:50.7]} 9... b6 {[%clk 0:02:41.6]}
10. Qe2 {[%clk 0:02:47.6]} 10... Bb7 {[%clk 0:02:41.1]} 11. Ne5 {[%clk
0:02:44.6]} 11... Nxe5 {[%clk 0:02:38.7]} 12. dxe5 {[%clk 0:02:42.3]} 12... Nd7
{[%clk 0:02:29.3]} 13. Bxe7 {[%clk 0:02:42.2]} 13... Qxe7 {[%clk 0:02:29]} 14.
Nf3 {[%clk 0:02:39.9]} 14... h6 {[%clk 0:02:27.6]} 15. Nd4 {[%clk 0:02:38.1]}
15... Qh4 {[%clk 0:02:19.8]} 16. f4 {[%clk 0:02:29.1]} 16... Nc5 {[%clk
0:02:18]} 17. Bc2 {[%clk 0:02:26.2]} 17... Rae8 {[%clk 0:02:10.5]} 18. Qe3
{[%clk 0:01:52.1]} 18... f5 {[%clk 0:02:09.4]} 19. a4 {[%clk 0:01:38.2]} 19...
Ba6 {[%clk 0:02:07.7]} 20. Nb5 {[%clk 0:01:28.3]} 20... Re7 {[%clk 0:01:59.9]}
21. Rf3 {[%clk 0:01:18.6]} 21... Ref7 {[%clk 0:01:52.4]} 22. Nd6 {[%clk
0:01:14.4]} 22... Rc7 {[%clk 0:01:44.5]} 23. a5 {[%clk 0:01:12.6]} 23... b5
{[%clk 0:01:35.5]} 24. Rg3 {[%clk 0:00:55.6]} 24... Kh8 {[%clk 0:01:29.5]} 25.
Rh3 {[%clk 0:00:42.8]} 25... Qe7 {[%clk 0:01:25.2]} 26. Qg3 {[%clk 0:00:39.7]}
26... Ne4 {[%clk 0:01:18.9]} 27. Bxe4 {[%clk 0:00:38.5]} 27... dxe4 {[%clk
0:01:13.7]} 28. Qg6 {[%clk 0:00:34.3]} 28... Rd8 {[%clk 0:00:52]} 29. Nxf5
{[%clk 0:00:20.9]} 29... exf5 {[%clk 0:00:41.4]} 30. Qxa6 {[%clk 0:00:21.8]}
30... Qc5+ {[%clk 0:00:36.3]} 31. Kh1 {[%clk 0:00:21.2]} 31... Rc6 {[%clk
0:00:36.5]} 32. Qb7 {[%clk 0:00:20.3]} 32... Rc7 {[%clk 0:00:32.4]} 33. Qa6
{[%clk 0:00:17.9]} 33... Rc6 {[%clk 0:00:31.5]} 34. Qb7 {[%clk 0:00:17.3]} 34...
Rc7 {[%clk 0:00:30.3]} 35. Qa6 {[%clk 0:00:17.7]} 1/2-1/2